bitfinex/quotes_SOLUSD_20220102
["timestamp","ask_amount","ask_price","bid_price","bid_amount"]
[1641165005871,8.4913,176.69,176.64,79.15444869]
[1641165006071,12.06114175,176.68,176.64,3.29214869]
[1641165006973,12.06114175,176.68,176.64,3.03214869]
[1641165007173,12.06114175,176.68,176.64,0.5]
[1641165007374,20.55294175,176.68,176.62,5.12533881]
[1641165012985,20.55294175,176.68,176.62,5.38533881]
[1641165013385,20.55294175,176.68,176.62,5.88533881]
[1641165013586,8.4918,176.68,176.62,5.88533881]
[1641165013785,8.4909,176.69,176.62,5.88533881]
[1641165013986,2.52328885,176.71,176.62,14.37663881]
[1641165014886,8.4907,176.7,176.62,14.37663881]
[1641165028531,8.4907,176.7,176.62,22.47663881]
[1641165029227,8.4907,176.7,176.62,14.37663881]
[1641165031831,1.57505399,176.73,176.63,8.1]
[1641165032032,1.57505399,176.73,176.63,8.36]
[1641165032231,1.57505399,176.74,176.66,8.4889]
[1641165032430,1.57505399,176.74,176.66,8.9889]
[1641165032632,1.57505399,176.74,176.66,9.2489]
[1641165032830,8.4894,176.73,176.67,1.56961401]
[1641165033032,8.4894,176.73,176.67,1.82961401]
[1641165033237,1.57505399,176.75,176.67,10.81831401]
[1641165033438,1.57505399,176.75,176.68,8.1]
[1641165033835,1.57505399,176.75,176.68,38.57389368]
[1641165034332,1.57505399,176.75,176.73,2.94472199]
[1641165034534,1.57505399,176.75,176.73,3.20472199]
[1641165034732,1.57505399,176.75,176.74,6.06439993]
[1641165034932,1.57505399,176.79,176.74,6.06439993]
[1641165035132,1.57505399,176.79,176.74,6.32439993]
[1641165035556,1.57505399,176.79,176.74,6.06439993]
[1641165035735,10.06125399,176.79,176.74,6.06439993]
[1641165035931,10.06125399,176.79,176.73,0.5]
[1641165036133,10.06125399,176.79,176.71,0.76]
[1641165036334,10.06125399,176.79,176.71,0.26]
[1641165036335,1.57505399,176.78,176.71,0.26]
[1641165036732,1.57505399,176.78,176.65,30.3791]
[1641165036933,28.2927,176.8,176.67,8.4883]
[1641165036934,8.4885,176.74,176.67,8.4883]
[1641165037331,8.6761406,176.73,176.66,2.79038588]
[1641165037534,8.6761406,176.73,176.66,3.29038588]
[1641165037933,17.1652406,176.73,176.66,11.77948588]
[1641165038533,17.1652406,176.73,176.66,12.03948588]
[1641165038734,8.4891,176.73,176.66,12.03948588]
[1641165040138,8.4885,176.74,176.66,12.03948588]
[1641165044643,8.4885,176.74,176.66,13.46617956]
[1641165045044,8.4885,176.74,176.66,12.03948588]
[1641165046749,8.4885,176.74,176.66,13.46617956]
[1641165048453,8.4885,176.74,176.66,12.03948588]
[1641165051676,8.4885,176.74,176.66,13.46617956]
[1641165052577,8.4885,176.74,176.66,21.56617956]
[1641165053580,34.84771003,176.75,176.66,13.46617956]
[1641165053979,34.84771003,176.75,176.66,21.56617956]
[1641165054780,34.84771003,176.75,176.66,20.13948588]
[1641165055180,34.84771003,176.75,176.66,12.03948588]
[1641165055380,34.84771003,176.75,176.66,20.13948588]
[1641165055579,34.84771003,176.75,176.66,12.03948588]
[1641165055984,34.84771003,176.75,176.66,20.13948588]
[1641165057183,34.84771003,176.75,176.66,12.03948588]
[1641165057583,8.488,176.75,176.66,12.03948588]
[1641165059686,8.488,176.75,176.66,13.46617956]
[1641165059891,9.6995,176.77,176.67,8.1]
[1641165060088,8.4875,176.77,176.67,8.36]
[1641165060287,8.4875,176.77,176.68,1.42669368]
[1641165060487,75.27735399,176.8,176.68,1.68669368]
[1641165060687,75.27735399,176.8,176.69,1.308]
[1641165060887,1.57505399,176.8,176.68,1.42669368]
[1641165061088,10.17505399,176.8,176.68,0.5]
[1641165061588,1.3224,176.79,176.68,0.5]
[1641165061825,1.3224,176.79,176.66,30.79635284]
[1641165061997,8.4893,176.74,176.69,2.15837523]
[1641165062490,17.66891257,176.74,176.69,2.15837523]
[1641165063288,17.66891257,176.74,176.66,36.57109011]
[1641165063488,15.11878128,176.74,176.66,36.83109011]
[1641165063689,8.4893,176.74,176.66,36.83109011]
[1641165063889,8.4893,176.74,176.66,38.25778379]
[1641165064491,11.31152015,176.74,176.67,2.2216618]
[1641165064689,36.25520652,176.74,176.66,10.67549368]
[1641165064889,36.25520652,176.74,176.66,0.76]
[1641165065090,36.25520652,176.74,176.65,8.4896]
[1641165065289,36.25520652,176.74,176.62,9.76609522]
[1641165065490,36.25520652,176.74,176.63,0.5]
[1641165065694,36.25520652,176.74,176.64,3.00279521]
[1641165065892,33.43298637,176.74,176.65,8.4896]
[1641165066090,33.43298637,176.74,176.64,3.50279521]
[1641165066289,33.43298637,176.74,176.65,1.42669368]
[1641165066491,33.43298637,176.74,176.65,1.92669368]
[1641165067095,33.43298637,176.74,176.65,2.18669368]
[1641165067992,10.95821136,176.75,176.67,8.4884]
[1641165068391,10.95821136,176.75,176.67,9.2484]
[1641165068792,26.62501532,176.74,176.67,9.2484]
[1641165070795,35.11361532,176.74,176.67,9.2484]
[1641165073798,8.4886,176.74,176.67,9.2484]
[1641165073998,9.7597,176.76,176.67,10.67509368]
[1641165074299,1.57505399,176.77,176.67,15.62609368]
[1641165074900,31.25323727,176.78,176.67,15.62609368]
[1641165075099,3.02978065,176.77,176.68,1.2472]
[1641165075300,3.02978065,176.77,176.72,8.4862]
[1641165075499,3.02978065,176.77,176.72,9.2462]
[1641165076825,3.02978065,176.77,176.72,0.5]
[1641165076826,11.51708065,176.77,176.72,0.5]
[1641165077027,11.51708065,176.77,176.68,1.5072]
[1641165077225,11.51708065,176.77,176.68,2.0072]
[1641165077624,11.51708065,176.77,176.69,2.63166825]
[1641165078025,11.51708065,176.77,176.69,3.39166825]
[1641165078227,11.51708065,176.77,176.69,11.87916825]
[1641165079125,8.4873,176.77,176.7,14.98482765]
[1641165079326,10.06155399,176.79,176.7,24.89872133]
[1641165079526,8.4865,176.79,176.7,25.65872133]
[1641165080128,2.89465399,176.8,176.7,26.87342133]
[1641165080526,1.3196,176.8,176.7,26.87342133]
[1641165081828,9.8053,176.8,176.7,26.87342133]
[1641165082429,9.8053,176.8,176.7,25.44672765]
[1641165085832,9.8053,176.8,176.7,10.2019]
[1641165086232,9.8053,176.8,176.7,8.9872]
[1641165087034,9.8053,176.8,176.7,8.4872]
[1641165087235,9.8053,176.8,176.7,8.7472]
[1641165088536,1.57505399,176.79,176.7,8.7472]
[1641165088736,8.4872,176.77,176.7,8.7472]
[1641165090936,2.80427457,176.76,176.7,9.2472]
[1641165092941,8.4872,176.77,176.7,9.2472]
[1641165093244,29.82983159,176.82,176.7,10.17389368]
[1641165093441,31.08733159,176.82,176.7,10.17389368]
[1641165093841,1.2575,176.82,176.7,9.91389368]
[1641165094040,3.7589794,176.82,176.71,1.3089]
[1641165094242,8.4852,176.81,176.75,8.4851]
[1641165094441,8.4852,176.81,176.76,1.88266775]
[1641165095241,8.4852,176.81,176.76,2.14266775]
[1641165096342,8.4852,176.81,176.76,10.62736775]
[1641165097145,12.79891921,176.82,176.76,10.62736775]
[1641165097343,11.54141921,176.82,176.76,10.62736775]
[1641165097542,11.54141921,176.82,176.77,2.6534047]
[1641165097944,11.54141921,176.82,176.77,2.9134047]
[1641165100547,11.54141921,176.82,176.77,2.6534047]
[1641165101153,11.54141921,176.82,176.74,2.6534047]
[1641165102153,13.1164732,176.82,176.74,2.6534047]
[1641165104356,13.1164732,176.82,176.71,2.6534047]
[1641165104559,13.1164732,176.82,176.71,11.4006047]
[1641165104758,13.1164732,176.82,176.71,2.9134047]
[1641165105159,14.4326732,176.82,176.71,2.9134047]
[1641165107763,14.4326732,176.82,176.71,11.4006047]
[1641165111992,1.57505399,176.81,176.71,11.4006047]
[1641165112191,8.4876,176.77,176.71,11.4006047]
[1641165113192,9.4803416,176.76,176.71,11.4006047]
[1641165122801,9.825,176.8,176.71,11.4006047]
[1641165123002,9.825,176.8,176.72,1.42669368]
[1641165123203,9.825,176.8,176.73,8.4861]
[1641165123401,9.825,176.8,176.73,11.1395047]
[1641165123602,9.825,176.8,176.73,11.3995047]
[1641165123803,23.04077126,176.79,176.73,11.3995047]
[1641165132616,1.57505399,176.82,176.73,11.3995047]
[1641165132816,1.57505399,176.82,176.74,8.1]
[1641165133014,1.57505399,176.82,176.78,8.4838]
[1641165133217,1.57505399,176.87,176.78,15.6058]
[1641165133413,1.57505399,176.87,176.78,15.8658]
[1641165133615,27.28127907,176.87,176.79,2.09499616]
[1641165133815,27.28127907,176.87,176.78,0.26]
[1641165134015,25.70622508,176.87,176.77,0.26]
[1641165134418,25.70622508,176.87,176.75,4.2059047]
[1641165134719,1.57505399,176.86,176.75,4.2059047]
[1641165135015,8.4841,176.85,176.76,2.59365549]
[1641165135418,8.4841,176.85,176.77,8.484]
[1641165135818,8.4841,176.85,176.75,3.9459047]
[1641165136116,10.05915399,176.85,176.75,2.6534047]
[1641165136315,18.15915399,176.85,176.75,2.9134047]
[1641165136715,1.57505399,176.84,176.75,11.1383047]
[1641165136941,9.67505399,176.84,176.75,2.6534047]
[1641165137143,9.67505399,176.84,176.74,2.6534047]
[1641165137844,28.2912,176.83,176.74,2.6534047]
[1641165138042,15.24705943,176.78,176.74,2.6534047]
[1641165140343,15.24705943,176.78,176.73,2.6534047]
[1641165140543,15.24705943,176.78,176.73,2.9134047]
[1641165141343,15.24705943,176.78,176.73,5.29489707]
[1641165147352,15.24705943,176.78,176.73,5.79489707]
[1641165148354,15.24705943,176.78,176.73,2.6534047]
[1641165148755,15.24705943,176.78,176.72,2.6534047]
[1641165149054,15.24705943,176.78,176.72,3.4134047]
[1641165149253,15.24705943,176.78,176.73,2.26425614]
[1641165149456,15.24705943,176.78,176.73,2.76425614]
[1641165149656,15.24705943,176.78,176.73,3.02425614]
[1641165151757,15.24705943,176.78,176.74,2.6534047]
[1641165151955,15.24705943,176.78,176.74,3.1534047]
[1641165157765,9.4261,176.84,176.74,13.06579838]
[1641165157969,2.88102242,176.83,176.74,13.32579838]
[1641165158366,3.38102242,176.83,176.74,13.32579838]
[1641165158566,3.38102242,176.83,176.74,14.55429838]
[1641165158768,24.81832845,176.82,176.74,14.55429838]
[1641165159370,24.81832845,176.82,176.74,13.1276047]
[1641165159766,4.65343659,176.82,176.74,13.1276047]
[1641165159966,4.65343659,176.82,176.74,14.55429838]
[1641165160167,4.65343659,176.82,176.74,14.29429838]
[1641165160372,4.65343659,176.82,176.74,12.8676047]
[1641165160571,4.65343659,176.82,176.74,13.1276047]
[1641165160769,4.65343659,176.82,176.74,12.8676047]
[1641165160969,13.25343659,176.82,176.74,2.6534047]
[1641165161370,21.73933659,176.82,176.72,2.6534047]
[1641165161970,1.57505399,176.8,176.72,2.6534047]
[1641165162170,9.67505399,176.8,176.72,2.6534047]
[1641165162372,10.17505399,176.8,176.72,2.6534047]
[1641165163174,1.57505399,176.78,176.72,2.6534047]
[1641165163372,8.4899,176.75,176.72,2.6534047]
[1641165164574,26.36758465,176.77,176.68,2.6534047]
[1641165164772,16.30363066,176.77,176.68,32.10598876]
[1641165164972,16.30363066,176.77,176.69,1.42669368]
[1641165165472,16.30363066,176.77,176.69,2.18669368]
[1641165165873,2.69695912,176.77,176.69,2.18669368]
[1641165166073,8.4881,176.78,176.69,2.18669368]
[1641165166274,9.67505399,176.8,176.7,1.42669368]
[1641165166474,2.07505399,176.8,176.7,2.18669368]
[1641165166674,0.5,176.8,176.7,2.18669368]
[1641165166874,0.5,176.8,176.71,1.42669368]
[1641165167073,19.6763871,176.81,176.72,31.42330275]
[1641165167275,1.57505399,176.81,176.72,38.39130275]
[1641165167477,1.57505399,176.82,176.73,1.42669368]
[1641165167872,1.57505399,176.82,176.73,2.18669368]
[1641165168278,1.57505399,176.82,176.75,8.4849]
[1641165168478,12.58996932,176.84,176.75,9.2449]
[1641165169079,12.58996932,176.84,176.76,24.15313082]
[1641165169280,12.58996932,176.84,176.76,32.63743082]
[1641165169281,11.01491533,176.84,176.76,32.63743082]
[1641165169485,11.01491533,176.84,176.76,33.39743082]
[1641165169884,1.57505399,176.86,176.77,4.08009838]
[1641165170084,1.57505399,176.86,176.77,4.34009838]
[1641165170289,1.57505399,176.86,176.81,8.4818]
[1641165170484,1.57505399,176.86,176.81,14.0698]
[1641165170711,1.57505399,176.88,176.82,1.42669368]
[1641165170916,1.57505399,176.88,176.83,2.54245493]
[1641165171111,1.57505399,176.88,176.83,2.80245493]
[1641165171312,1.57505399,176.88,176.83,3.30245493]
[1641165171521,1.57505399,176.91,176.83,11.78355493]
[1641165171710,1.57505399,176.91,176.83,13.21024861]
[1641165172122,3.2711862,176.91,176.83,11.78355493]
[1641165172314,1.69613221,176.91,176.83,11.78355493]
[1641165172515,2.88554617,176.9,176.83,11.78355493]
[1641165172914,2.88554617,176.9,176.84,2.6534047]
[1641165173118,2.88554617,176.9,176.84,2.9134047]
[1641165174017,4.46060016,176.9,176.84,2.9134047]
[1641165175118,4.46060016,176.9,176.84,2.6534047]
[1641165175919,1.57505399,176.88,176.84,2.6534047]
[1641165176123,1.57505399,176.88,176.8,78.9252]
[1641165176124,1.57505399,176.88,176.81,2.6534047]
[1641165176421,13.69191726,176.87,176.81,2.6534047]
[1641165176620,15.26697125,176.87,176.81,2.6534047]
[1641165176822,15.26697125,176.87,176.81,2.9134047]
[1641165178021,13.69191726,176.87,176.81,2.9134047]
[1641165179919,15.26697125,176.87,176.81,2.9134047]
[1641165181124,13.69191726,176.87,176.81,2.9134047]
[1641165182823,15.26697125,176.87,176.81,2.9134047]
[1641165185226,13.69191726,176.87,176.81,2.9134047]
[1641165188532,13.19191726,176.87,176.81,2.9134047]
[1641165188736,10.05845399,176.88,176.81,2.9134047]
[1641165190456,10.05845399,176.88,176.81,2.6534047]
[1641165191659,1.57505399,176.87,176.8,2.6534047]
[1641165191862,8.4848,176.85,176.8,2.6534047]
[1641165192460,2.63177651,176.84,176.8,2.6534047]
[1641165194264,11.11707651,176.84,176.8,2.6534047]
[1641165195464,12.6921305,176.84,176.76,2.6534047]
[1641165195867,12.6921305,176.84,176.76,3.1534047]
[1641165196866,1.57505399,176.83,176.76,3.1534047]
[1641165197170,10.06095399,176.83,176.76,3.1534047]
[1641165197366,8.4859,176.83,176.76,3.1534047]
[1641165200606,8.4859,176.83,176.76,2.6534047]
[1641165200976,10.06095399,176.83,176.76,2.6534047]
[1641165201278,10.06095399,176.83,176.73,80.4287]
[1641165201476,10.06095399,176.83,176.75,2.6534047]
[1641165201678,1.57505399,176.82,176.75,2.6534047]
[1641165201876,8.4866,176.81,176.75,2.6534047]
[1641165202777,7.9866,176.81,176.75,2.6534047]
[1641165204381,7.9866,176.81,176.73,82.4188]
[1641165204579,10.06105399,176.83,176.74,2.6534047]
[1641165204980,10.06105399,176.83,176.74,3.4134047]
[1641165205183,9.56105399,176.83,176.74,3.4134047]
[1641165205783,8.486,176.83,176.75,30.81063207]
[1641165205986,8.486,176.83,176.75,31.31063207]
[1641165206386,8.486,176.83,176.74,11.3989047]
[1641165206584,8.486,176.83,176.74,3.4134047]
[1641165206982,7.986,176.83,176.74,3.4134047]
[1641165210987,7.986,176.83,176.74,11.8990047]
[1641165211187,8.4849,176.85,176.74,11.8990047]
[1641165211388,8.4849,176.85,176.74,27.6360047]
[1641165211987,8.4849,176.85,176.75,1.3212]
[1641165212188,8.4849,176.85,176.78,25.17553142]
[1641165212587,8.4849,176.85,176.78,25.43553142]
[1641165214193,8.4849,176.85,176.78,25.93553142]
[1641165214406,8.4849,176.85,176.78,25.43553142]
[1641165214899,8.4849,176.85,176.78,25.93553142]
[1641165215398,8.4849,176.85,176.79,2.6534047]
[1641165215623,11.1125595,176.86,176.79,2.6534047]
[1641165215825,8.4839,176.86,176.79,2.6534047]
[1641165216924,10.94116905,176.86,176.79,2.6534047]
[1641165217926,10.94116905,176.86,176.79,3.1534047]
[1641165218526,2.45726905,176.86,176.79,3.1534047]
[1641165219229,2.45726905,176.86,176.79,2.6534047]
[1641165219428,2.45726905,176.86,176.79,3.1534047]
[1641165220229,1.45726905,176.86,176.79,3.1534047]
[1641165220431,1.45726905,176.86,176.79,2.6534047]
[1641165220831,9.94116905,176.86,176.79,2.6534047]
[1641165221031,9.94116905,176.86,176.79,3.1534047]
[1641165221830,9.94116905,176.86,176.79,2.6534047]
[1641165222031,7.33649181,176.86,176.79,2.6534047]
[1641165222830,7.33649181,176.86,176.79,3.1534047]
[1641165224030,2.39532276,176.86,176.79,11.8967047]
[1641165225333,13.74014146,176.9,176.79,11.8967047]
[1641165225730,8.4828,176.89,176.79,11.8967047]
[1641165226235,2.38951203,176.88,176.79,11.8967047]
[1641165227237,10.87251203,176.88,176.79,11.8967047]
[1641165228138,10.87835101,176.88,176.79,11.8967047]
[1641165230139,10.37835101,176.88,176.79,11.8967047]
[1641165230538,9.87835101,176.88,176.79,11.8967047]
[1641165231140,10.37835101,176.88,176.79,2.6534047]
[1641165232143,18.47835101,176.88,176.79,2.6534047]
[1641165233544,18.47835101,176.88,176.79,2.9134047]
[1641165233745,17.97835101,176.88,176.79,2.9134047]
[1641165234371,17.97835101,176.88,176.79,11.6367047]
[1641165234545,17.97835101,176.88,176.79,3.8589047]
[1641165236349,17.97835101,176.88,176.79,4.3589047]
[1641165237751,17.97835101,176.88,176.79,3.8589047]
[1641165238553,18.47835101,176.88,176.79,2.6534047]
[1641165238755,17.97835101,176.88,176.79,2.6534047]
[1641165238954,17.97835101,176.88,176.76,2.6534047]
[1641165239356,21.13417988,176.88,176.76,2.6534047]
[1641165241357,17.97835101,176.88,176.76,2.6534047]
[1641165241555,15.47835101,176.88,176.76,2.6534047]
[1641165243379,14.97835101,176.88,176.76,2.6534047]
[1641165243579,8.4879,176.82,176.75,2.59821949]
[1641165243781,15.9278783,176.81,176.75,2.59821949]
[1641165243982,15.9278783,176.81,176.72,2.6534047]
[1641165244180,15.9278783,176.81,176.72,3.1534047]
[1641165244381,13.74014146,176.81,176.72,3.1534047]
[1641165244579,8.486,176.82,176.72,3.4134047]
[1641165244779,3.15582887,176.84,176.73,1.42669368]
[1641165244980,3.15582887,176.84,176.73,2.18669368]
[1641165245582,15.61789625,176.84,176.74,2.93272332]
[1641165245880,15.61789625,176.84,176.74,3.43272332]
[1641165246083,15.61789625,176.84,176.75,1.275]
[1641165246281,15.61789625,176.84,176.75,13.84029838]
[1641165246481,15.61789625,176.84,176.75,14.60029838]
[1641165246682,13.44986445,176.84,176.75,14.60029838]
[1641165246884,13.44986445,176.84,176.76,1.42669368]
[1641165247091,8.485,176.85,176.76,1.68669368]
[1641165247287,8.485,176.85,176.76,2.18669368]
[1641165247583,3.15582887,176.88,176.77,1.42669368]
[1641165247784,3.15582887,176.88,176.78,2.8936133]
[1641165247982,3.15582887,176.88,176.78,3.6536133]
[1641165248187,3.15582887,176.88,176.79,25.83524508]
[1641165248383,18.11198405,176.9,176.79,26.33524508]
[1641165248583,18.11198405,176.9,176.82,2.30855611]
[1641165248784,18.11198405,176.9,176.8,1.42669368]
[1641165248984,18.61198405,176.9,176.8,0.76]
[1641165249486,18.61198405,176.9,176.81,2.6534047]
[1641165249884,27.09418405,176.9,176.81,2.6534047]
[1641165251287,35.19418405,176.9,176.81,2.6534047]
[1641165251485,36.62087773,176.9,176.81,2.6534047]
[1641165251986,36.12087773,176.9,176.81,2.6534047]
[1641165252186,6.4328866,176.89,176.81,2.6534047]
[1641165252386,8.4853,176.84,176.81,2.6534047]
[1641165252786,8.4853,176.84,176.79,2.6534047]
[1641165254086,8.4845,176.85,176.79,2.6534047]
[1641165254687,2.27455635,176.86,176.79,2.9134047]
[1641165254888,2.27455635,176.86,176.79,3.4134047]
[1641165255188,2.27455635,176.86,176.79,2.9134047]
[1641165255388,2.27455635,176.86,176.79,3.4134047]
[1641165257389,2.27455635,176.86,176.79,11.8966047]
[1641165258592,1.77455635,176.86,176.79,11.8966047]
[1641165258793,8.4831,176.88,176.79,11.8966047]
[1641165259492,8.4831,176.88,176.79,13.1480047]
[1641165259894,2.91601257,176.87,176.79,13.1480047]
[1641165260093,11.39951257,176.87,176.79,4.1648047]
[1641165261394,11.39951257,176.87,176.79,4.6648047]
[1641165263094,11.39951257,176.87,176.79,3.4134047]
[1641165263494,11.39951257,176.87,176.79,2.6534047]
[1641165263898,8.4854,176.84,176.76,3.8756047]
[1641165264096,8.4854,176.84,176.76,4.3756047]
[1641165264395,1.40287035,176.83,176.76,7.09275887]
[1641165265397,1.40287035,176.83,176.76,7.35275887]
[1641165270606,8.4854,176.84,176.76,7.35275887]
[1641165270807,8.4846,176.85,176.76,15.83735887]
[1641165271010,3.22043538,176.86,176.76,15.83735887]
[1641165271809,14.01369666,176.86,176.76,44.66768845]
[1641165272010,11.70453538,176.86,176.76,44.66768845]
[1641165274012,10.37583538,176.86,176.76,44.66768845]
[1641165274812,1.64936146,176.85,176.76,44.66768845]
[1641165275014,1.64936146,176.85,176.76,44.40768845]
[1641165275414,10.13386146,176.85,176.76,44.40768845]
[1641165276442,10.13386146,176.85,176.76,15.57735887]
[1641165276643,10.13386146,176.85,176.76,15.83735887]
[1641165280054,1.89173538,176.86,176.76,15.83735887]
[1641165280253,1.89173538,176.86,176.77,27.14262073]
[1641165280454,1.89173538,176.86,176.78,8.4835]
[1641165280752,1.89173538,176.86,176.77,27.90262073]
[1641165281156,1.89173538,176.86,176.78,2.6534047]
[1641165281354,2.78253307,176.88,176.79,2.92715921]
[1641165281554,8.4836,176.87,176.79,11.67045921]
[1641165281754,8.4836,176.87,176.79,12.17045921]
[1641165281954,2.78253307,176.88,176.79,12.17045921]
[1641165282156,8.1,176.9,176.79,12.17045921]
[1641165282352,9.3649,176.9,176.79,12.17045921]
[1641165283256,2.52334198,176.89,176.79,12.17045921]
[1641165284560,2.52334198,176.89,176.8,2.6534047]
[1641165284758,2.52334198,176.89,176.82,2.52748018]
[1641165284957,2.52334198,176.89,176.82,3.02748018]
[1641165285157,2.52334198,176.89,176.82,3.28748018]
[1641165287160,2.52334198,176.89,176.83,2.6534047]
[1641165287359,2.52334198,176.89,176.83,3.1534047]
[1641165287562,11.00604198,176.89,176.83,2.6534047]
[1641165289260,10.50604198,176.89,176.83,2.6534047]
[1641165290961,10.50604198,176.89,176.8,11.19362677]
[1641165291164,11.00604198,176.89,176.81,2.6534047]
[1641165291362,11.00604198,176.89,176.81,3.1534047]
[1641165291564,10.50604198,176.89,176.81,2.9134047]
[1641165291761,10.50604198,176.89,176.81,2.6534047]
[1641165292363,10.50604198,176.89,176.81,3.1534047]
[1641165292764,10.50604198,176.89,176.81,3.4134047]
[1641165294793,12.07708297,176.89,176.81,3.1534047]
[1641165295097,12.07708297,176.89,176.81,2.6534047]
[1641165295393,12.07708297,176.89,176.81,3.1534047]
[1641165296195,12.07708297,176.89,176.81,2.6534047]
[1641165296397,12.07708297,176.89,176.81,3.1534047]
[1641165296694,12.07708297,176.89,176.81,3.4134047]
[1641165296994,10.50604198,176.89,176.81,3.4134047]
[1641165297295,10.50604198,176.89,176.81,3.1534047]
[1641165297496,10.50604198,176.89,176.81,2.6534047]
[1641165297696,11.00604198,176.89,176.81,2.6534047]
[1641165298301,17.45622922,176.88,176.81,2.6534047]
[1641165298496,8.4844,176.86,176.81,2.6534047]
[1641165298697,1.79554094,176.85,176.81,2.6534047]
[1641165299399,8.4844,176.86,176.81,2.6534047]
[1641165299598,8.4836,176.87,176.81,2.6534047]
[1641165300498,10.74066002,176.87,176.81,2.6534047]
[1641165302505,8.4836,176.87,176.81,2.6534047]
[1641165302901,8.483,176.88,176.81,2.6534047]
[1641165303101,8.483,176.88,176.81,3.1534047]
[1641165303304,8.483,176.88,176.81,3.4134047]
[1641165303701,8.483,176.88,176.81,3.1534047]
[1641165303902,8.483,176.88,176.81,2.6534047]
[1641165304306,8.983,176.88,176.81,2.6534047]
[1641165308709,8.483,176.88,176.81,2.6534047]
[1641165310507,8.983,176.88,176.81,2.6534047]
[1641165311107,8.483,176.88,176.81,2.6534047]
[1641165311311,8.983,176.88,176.81,2.6534047]
[1641165311707,8.483,176.88,176.81,2.6534047]
[1641165313010,8.983,176.88,176.81,2.6534047]
[1641165313913,8.483,176.88,176.81,2.6534047]
[1641165314311,8.983,176.88,176.81,2.6534047]
[1641165314511,8.483,176.88,176.81,2.6534047]
[1641165315511,8.983,176.88,176.81,2.6534047]
[1641165317413,8.983,176.88,176.79,2.6534047]
[1641165318214,10.2835,176.88,176.79,5.13800038]
[1641165319018,10.2835,176.88,176.8,28.3086016]
[1641165320645,10.2835,176.88,176.81,2.6534047]
[1641165320941,10.2835,176.88,176.82,2.24842468]
[1641165321244,9.7835,176.88,176.82,2.24842468]
[1641165321443,10.2835,176.88,176.82,2.24842468]
[1641165323748,10.2835,176.88,176.83,2.6534047]
[1641165324549,8.983,176.88,176.83,2.6534047]
[1641165325948,1.60793591,176.86,176.83,2.6534047]
[1641165326149,10.09223591,176.86,176.83,2.6534047]
[1641165326348,11.49116358,176.86,176.83,2.6534047]
[1641165326750,8.1,176.85,176.83,2.6534047]
[1641165326950,8.1,176.85,176.79,2.6534047]
[1641165326951,8.6,176.85,176.79,2.6534047]
[1641165327349,11.48294768,176.85,176.79,2.6534047]
[1641165327549,8.4879,176.82,176.79,2.6534047]
[1641165327950,8.9879,176.82,176.79,2.6534047]
[1641165328549,1.5920423,176.8,176.79,2.6534047]
[1641165328949,10.5800423,176.8,176.79,2.6534047]
[1641165329754,10.0800423,176.8,176.79,2.6534047]
[1641165329952,10.0800423,176.8,176.73,5.03287002]
[1641165330953,8.488,176.8,176.73,5.53287002]
[1641165331156,8.488,176.8,176.74,23.48824409]
[1641165331554,1.5920423,176.81,176.74,24.24824409]
[1641165332557,1.5920423,176.81,176.74,32.73394409]
[1641165332958,8.485,176.84,176.75,2.6534047]
[1641165333157,8.485,176.84,176.76,2.29763655]
[1641165333356,8.485,176.84,176.76,2.79763655]
[1641165333559,8.485,176.84,176.76,3.05763655]
[1641165334558,1.5920423,176.85,176.76,11.54233655]
[1641165335659,10.0764423,176.85,176.76,3.05763655]
[1641165335861,10.0764423,176.85,176.76,2.55763655]
[1641165336263,10.0764423,176.85,176.76,3.05763655]
[1641165336660,10.0764423,176.85,176.77,2.6534047]
[1641165336861,10.0764423,176.85,176.78,26.49779085]
[1641165337461,10.0764423,176.85,176.78,26.99779085]
[1641165337665,10.0764423,176.85,176.79,2.3663857]
[1641165337862,10.0764423,176.85,176.79,2.8663857]
[1641165338263,10.0764423,176.85,176.79,2.3663857]
[1641165338562,0.95830879,176.84,176.79,2.3663857]
[1641165339163,10.0764423,176.85,176.8,2.6534047]
[1641165340168,12.79767314,176.85,176.8,2.6534047]
[1641165340566,11.20563084,176.85,176.8,2.6534047]
[1641165342168,12.79767314,176.85,176.8,2.6534047]
[1641165343172,10.0764423,176.85,176.8,2.6534047]
[1641165343670,1.5920423,176.85,176.8,2.6534047]
[1641165344370,1.5920423,176.85,176.79,2.6534047]
[1641165344869,11.42919356,176.85,176.79,4.81521019]
[1641165345070,11.42919356,176.85,176.79,5.31521019]
[1641165345570,11.42919356,176.85,176.79,4.81521019]
[1641165345772,11.42919356,176.85,176.79,2.1534047]
[1641165346370,11.42919356,176.85,176.79,2.6534047]
[1641165347175,13.02123586,176.85,176.79,2.6534047]
[1641165347673,13.02123586,176.85,176.79,2.1534047]
[1641165348076,13.02123586,176.85,176.78,2.1534047]